fUST/lending_fUST_20250208
["ID","MTS","AMOUNT","RATE_DAILY","PERIOD"]
[352260482,1739020247618,-311.35189349,0.00011506,2]
[352260484,1739020247631,-433.10810651,0.00011506,2]
[352260486,1739020247641,-500.0,0.00011506,2]
[352260488,1739020247651,-500.0,0.00011506,2]
[352260490,1739020247660,-744.3,0.00011506,2]
[352260492,1739020247670,-1565.45,0.00011506,2]
[352260494,1739020247679,-500.0,0.00011506,2]
[352260496,1739020247688,-500.0,0.00011506,2]
[352260498,1739020247697,-1742.34,0.00011506,2]
[352260500,1739020247706,-1529.08,0.00011506,2]
[352260502,1739020247716,-500.0,0.00011506,2]
[352260504,1739020247725,-1161.64,0.00011506,2]
[352260506,1739020247735,-4366.95,0.00011506,2]
[352260509,1739020247745,-151.0,0.00011506,2]
[352260511,1739020247755,-500.0,0.00011506,2]
[352260513,1739020247764,-500.0,0.00011506,2]
[352260515,1739020247774,-500.0,0.00011506,2]
[352260517,1739020247786,-151.0,0.00011506,2]
[352260519,1739020247796,-1247.39,0.00011506,2]
[352260521,1739020247810,-184.55223058,0.00011506,2]
[352260523,1739020247823,-500.0,0.00011506,2]
[352260525,1739020247833,-1350.12,0.00011506,2]
[352260527,1739020247843,-500.0,0.00011506,2]
[352260529,1739020247855,-500.0,0.00011506,2]
[352260531,1739020247865,-500.0,0.00011506,2]
[352260533,1739020247875,-1064.26,0.00011506,2]
[352260535,1739020247885,-500.0,0.00011506,2]
[352260537,1739020247896,-500.0,0.00011506,2]
[352260539,1739020247906,-500.0,0.00011506,2]
[352260541,1739020247915,-500.0,0.00011506,2]
[352260543,1739020247925,-331.83905596,0.00011506,2]
[352260560,1739020248086,-250.400004,0.00010958,2]
[352263812,1739020980762,1000.0,0.00018,120]
[352263862,1739021432514,-339.6297755,9.523e-05,2]
[352263864,1739021432524,-2635.6893509,9.677e-05,2]
[352263866,1739021432534,-154.99,9.774e-05,2]
[352263868,1739021432544,-183.4327452,9.968e-05,2]
[352263870,1739021432553,-300.0,9.999e-05,2]
[352263872,1739021432563,-2106.0,0.0001,2]
[352263874,1739021432574,-2103.0,0.0001,2]
[352263876,1739021432583,-2103.0,0.0001,2]
[352263878,1739021432593,-2103.0,0.0001,2]
[352263880,1739021432602,-1000.0,0.0001,3]
[352263882,1739021432612,-9533.0,0.0001,2]
[352263884,1739021432621,-1704.0,0.0001,2]
[352263886,1739021432630,-250.0,0.00010795,2]
[352263888,1739021432639,-354.7727591,0.00010822,2]
[352263890,1739021432648,-354.7727591,0.00010822,2]
[352263892,1739021432657,-354.7727591,0.00010822,2]
[352263894,1739021432666,-354.7727591,0.00010822,2]
[352263896,1739021432675,-211.70900227,0.00010858,2]
[352263898,1739021432684,-226.4670325,0.00010877,2]
[352263900,1739021432693,-500.0,0.00010957,2]
[352263902,1739021432701,-152.32558677,0.00010957,2]
[352263904,1739021432711,-500.0,0.00010957,2]
[352263906,1739021432720,-296.24966174,0.00010957,2]
[352263908,1739021432729,-480.32194321,0.00010957,2]
[352263909,1739021432738,-500.0,0.00010958,2]
[352263911,1739021432748,-500.46046578,0.00010958,2]
[352263914,1739021432757,-500.0,0.00010958,2]
[352263915,1739021432766,-500.0,0.00010958,2]
[352263918,1739021432775,-500.0,0.00010958,2]
[352263921,1739021432795,-500.0,0.00010958,2]
[352263923,1739021432806,-500.0,0.00010958,2]
[352263925,1739021432816,-363.3148976,0.00010958,2]
[352263928,1739021432832,-136.6851024,0.00010958,2]
[352263930,1739021432842,-500.0,0.00010958,2]
[352263932,1739021432851,-500.0,0.00010958,2]
[352263934,1739021432861,-424.86869562,0.00010958,2]
[352263936,1739021432870,-500.0,0.00010958,2]
[352263938,1739021432880,-500.0,0.00010958,2]
[352263940,1739021432891,-426.54006714,0.00010958,2]
[352263942,1739021432901,-500.0,0.00010958,2]
[352263944,1739021432911,-500.0,0.00010958,2]
[352263946,1739021432922,-500.0,0.00010958,2]
[352263948,1739021432931,-500.0,0.00010958,2]
[352263950,1739021432941,-354.83054355,0.00010958,2]
[352263952,1739021432951,-500.0,0.00010958,2]
[352263954,1739021432960,-500.0,0.00010958,2]
[352263956,1739021432969,-500.0,0.00010958,2]
[352263958,1739021432979,-500.0,0.00010958,2]
[352263960,1739021432988,-500.0,0.00010958,2]
[352263962,1739021432999,-500.0,0.00010958,2]
[352263965,1739021433009,-500.0,0.00010958,2]
[352263967,1739021433019,-500.0,0.00010958,2]
[352263969,1739021433028,-438.22386094,0.00010958,2]
[352263970,1739021433038,-403.59990338,0.00010958,2]
[352263973,1739021433048,-500.0,0.00010958,2]
[352263975,1739021433058,-500.0,0.00010958,2]
[352263977,1739021433067,-500.0,0.00010958,2]
[352263979,1739021433079,-506.92400394,0.00010958,2]
[352263981,1739021433089,-500.0,0.00010958,2]
[352263983,1739021433099,-500.0,0.00010958,2]
[352263985,1739021433109,-500.0,0.00010958,2]
[352263987,1739021433119,-500.0,0.00010958,2]
[352263989,1739021433128,-500.0,0.00010958,2]
[352263991,1739021433139,-500.0,0.00010958,2]
[352263993,1739021433149,-500.0,0.00010958,2]
[352263995,1739021433160,-500.0,0.00010958,2]
[352263997,1739021433170,-500.0,0.00010958,2]
[352263999,1739021433180,-500.0,0.00010958,2]
[352264002,1739021433190,-172.24545994,0.00010958,2]
[352264004,1739021433202,-688.06,0.00010958,2]
[352264006,1739021433214,-500.0,0.00010958,2]
[352264008,1739021433223,-500.0,0.00010958,2]
[352264010,1739021433233,-500.0,0.00010958,2]
[352264012,1739021433243,-500.0,0.00010958,2]
[352264014,1739021433254,-500.0,0.00010958,2]
[352264016,1739021433264,-500.0,0.00010958,2]
[352264018,1739021433274,-500.0,0.00010958,2]
[352264020,1739021433285,-500.0,0.00010958,2]
[352264022,1739021433295,-500.0,0.00010958,2]
[352264024,1739021433305,-500.0,0.00010958,2]
[352264026,1739021433315,-511.92,0.00010958,2]
[352264028,1739021433325,-500.0,0.00010958,2]
[352264030,1739021433335,-500.0,0.00010958,2]
[352264032,1739021433345,-500.0,0.00010958,2]
[352264034,1739021433355,-500.0,0.00010958,2]
[352264037,1739021433368,-500.0,0.00010958,2]
[352264039,1739021433378,-500.0,0.00010958,2]
[352264041,1739021433388,-500.0,0.00010958,2]
[352264043,1739021433398,-500.0,0.00010958,2]
[352264045,1739021433408,-500.0,0.00010958,2]
[352264047,1739021433419,-817.65,0.00010958,2]
[352264049,1739021433429,-500.0,0.00010958,2]
[352264051,1739021433439,-485.0155381,0.00010958,2]
[352264053,1739021433449,-500.0,0.00010958,2]
[352264055,1739021433459,-500.0,0.00010958,2]
[352264057,1739021433469,-500.0,0.00010958,2]
[352264059,1739021433479,-500.0,0.00010958,2]
[352264061,1739021433489,-500.0,0.00010958,2]
[352264063,1739021433499,-500.0,0.00010958,2]
[352264065,1739021433510,-500.0,0.00010958,2]
[352264067,1739021433520,-500.0,0.00010958,2]
[352264070,1739021433530,-900.15,0.00010958,2]
[352264072,1739021433540,-223.99599155,0.00010958,2]
[352264074,1739021433550,-500.0,0.00010958,2]
[352264076,1739021433560,-500.0,0.00010958,2]
[352264078,1739021433570,-500.0,0.00010958,2]
[352264080,1739021433583,-500.0,0.00010958,2]
[352264082,1739021433594,-500.0,0.00010958,2]
[352264084,1739021433604,-1194.88,0.00010958,2]
[352264086,1739021433615,-500.0,0.00010958,2]
[352264088,1739021433625,-500.0,0.00010958,2]
[352264090,1739021433635,-500.0,0.00010958,2]
[352264092,1739021433645,-500.0,0.00010958,2]
[352264094,1739021433656,-1460.56,0.00010958,2]
[352264096,1739021433665,-448.32153028,0.00010958,2]
[352264098,1739021433675,-1479.66,0.00010958,2]
[352264100,1739021433686,-500.0,0.00010958,2]
[352264102,1739021433696,-614.9,0.00010958,2]
[352264104,1739021433706,-695.27,0.00010958,2]
[352264106,1739021433716,-500.0,0.00010958,2]
[352264108,1739021433727,-500.0,0.00010958,2]
[352264110,1739021433737,-754.13,0.00010958,2]
[352264112,1739021433747,-500.0,0.00010958,2]
[352264114,1739021433758,-500.0,0.00010958,2]
[352264116,1739021433767,-500.0,0.00010958,2]
[352264118,1739021433777,-500.0,0.00010958,2]
[352264121,1739021433787,-500.0,0.00010958,2]
[352264123,1739021433797,-1078.76,0.00010958,2]
[352264125,1739021433808,-500.0,0.00010958,2]
[352264127,1739021433818,-500.0,0.00010958,2]
[352264129,1739021433836,-500.0,0.00010958,2]
[352264131,1739021433846,-500.0,0.00010958,2]
[352264133,1739021433857,-500.0,0.00010958,2]
[352264135,1739021433867,-500.0,0.00010958,2]
[352264137,1739021433877,-500.0,0.00010958,2]
[352264139,1739021433887,-272.9783568,0.00010958,2]
[352264141,1739021433896,-500.0,0.00010958,2]
[352264143,1739021433905,-500.0,0.00010958,2]
[352264145,1739021433915,-1502.22,0.00010958,2]
[352264147,1739021433924,-500.0,0.00010958,2]
[352264149,1739021433934,-500.0,0.00010958,2]
[352264151,1739021433944,-716.35,0.00010958,2]
[352264153,1739021433954,-275.59279432,0.00010958,2]
[352264460,1739021438306,-224.40720568,0.00010958,2]
[352264462,1739021438316,-321.09939492,0.00010958,2]
[352264464,1739021438327,-500.0,0.00010958,2]
[352264466,1739021438336,-332.9426841,0.00010958,2]
[352264468,1739021438348,-167.0573159,0.00010958,2]
[352264469,1739021438357,-500.0,0.00010958,2]
[352264470,1739021438367,-237.92392802,0.00010958,2]
[352264471,1739021438379,-262.07607198,0.00010958,2]
[352264472,1739021438389,-189.06260002,0.00010958,2]
[352264473,1739021438400,-310.93739998,0.00010958,2]
[352264474,1739021438410,-500.0,0.00010958,2]
[352264475,1739021438419,-267.17055502,0.00010958,2]
[352264484,1739021438499,-232.82944498,0.00010958,2]
[352264486,1739021438509,-500.0,0.00010958,2]
[352264488,1739021438519,-517.53111765,0.00010958,2]
[352264491,1739021438529,-500.0,0.00010958,2]
[352264493,1739021438538,-500.0,0.00010958,2]
[352264495,1739021438548,-500.0,0.00010958,2]
[352264497,1739021438557,-596.08398438,0.00010958,2]
[352264499,1739021438567,-553.76790137,0.00010958,2]
[352264501,1739021438577,-533.67,0.00010958,2]
[352264503,1739021438586,-500.0,0.00010958,2]
[352264505,1739021438595,-500.0,0.00010958,2]
[352264507,1739021438604,-500.0,0.00010958,2]
[352264509,1739021438614,-500.0,0.00010958,2]
[352264511,1739021438623,-1338.69,0.00010958,2]
[352264513,1739021438632,-500.0,0.00010958,2]
[352264515,1739021438641,-500.0,0.00010958,2]
[352264517,1739021438651,-633.45,0.00010958,2]
[352264519,1739021438660,-500.0,0.00010958,2]
[352264521,1739021438670,-243.74158017,0.00010958,2]
[352264523,1739021438679,-508.1595289,0.00010958,2]
[352264525,1739021438688,-500.0,0.00010958,2]
[352264527,1739021438698,-500.0,0.00010958,2]
[352264529,1739021438707,-503.5,0.00010958,2]
[352264531,1739021438717,-500.0,0.00010958,2]
[352264533,1739021438726,-500.0,0.00010958,2]
[352264535,1739021438735,-1067.98,0.00010958,2]
[352264537,1739021438745,-500.0,0.00010958,2]
[352264539,1739021438755,-500.0,0.00010958,2]
[352264541,1739021438764,-500.0,0.00010958,2]
[352264543,1739021438773,-500.0,0.00010958,2]
[352264545,1739021438783,-500.0,0.00010958,2]
[352264547,1739021438792,-1176.62,0.00010958,2]
[352264549,1739021438801,-500.0,0.00010958,2]
[352264551,1739021438811,-262.21998038,0.00010958,2]
[352264553,1739021438820,-500.0,0.00010958,2]
[352264555,1739021438830,-577.599956,0.00010958,2]
[352264557,1739021438839,-500.0,0.00010958,2]
[352264559,1739021438849,-500.0,0.00010958,2]
[352264561,1739021438858,-506.19487016,0.00010958,2]
[352264564,1739021438868,-500.0,0.00010958,2]
[352264566,1739021438877,-500.0,0.00010958,2]
[352264568,1739021438888,-500.0,0.00010958,2]
[352264570,1739021438897,-801.71,0.00010958,2]
[352264572,1739021438907,-500.0,0.00010958,2]
[352264574,1739021438918,-500.0,0.00010958,2]
[352264576,1739021438927,-500.0,0.00010958,2]
[352264578,1739021438936,-500.0,0.00010958,2]
[352264580,1739021438945,-500.0,0.00010958,2]
[352264582,1739021438955,-500.0,0.00010958,2]
[352264584,1739021438964,-500.0,0.00010958,2]
[352264586,1739021438974,-389.98335779,0.00010958,2]
[352264588,1739021438983,-769.56,0.00010958,2]
[352264590,1739021438993,-500.0,0.00010958,2]
[352264592,1739021439002,-500.0,0.00010958,2]
[352264594,1739021439011,-500.0,0.00010958,2]
[352264596,1739021439021,-500.0,0.00010958,2]
[352264598,1739021439030,-500.0,0.00010958,2]
[352264600,1739021439039,-500.0,0.00010958,2]
[352264602,1739021439049,-500.0,0.00010958,2]
[352264604,1739021439058,-529.22,0.00010958,2]
[352264606,1739021439068,-500.0,0.00010958,2]
[352264608,1739021439078,-500.0,0.00010958,2]
[352264610,1739021439087,-500.0,0.00010958,2]
[352264612,1739021439096,-1148.87,0.00010958,2]
[352264614,1739021439106,-500.0,0.00010958,2]
[352264616,1739021439115,-500.0,0.00010958,2]
[352264618,1739021439125,-500.0,0.00010958,2]
[352264620,1739021439134,-500.0,0.00010958,2]
[352264623,1739021439143,-500.0,0.00010958,2]
[352264625,1739021439153,-500.0,0.00010958,2]
[352264627,1739021439162,-500.0,0.00010958,2]
[352264629,1739021439171,-500.0,0.00010958,2]
[352264631,1739021439181,-500.0,0.00010958,2]
[352264633,1739021439191,-500.0,0.00010958,2]
[352264635,1739021439202,-460.53401954,0.00010958,2]
[352264637,1739021439212,-500.0,0.00010958,2]
[352264639,1739021439221,-3345.11,0.00010958,2]
[352264640,1739021439231,-500.0,0.00010958,2]
[352264643,1739021439241,-500.0,0.00010958,2]
[352264645,1739021439250,-1237.17,0.00010958,2]
[352264647,1739021439260,-500.0,0.00010958,2]
[352264649,1739021439269,-500.0,0.00010958,2]
[352264651,1739021439281,-500.0,0.00010958,2]
[352264653,1739021439292,-500.0,0.00010958,2]
[352264655,1739021439302,-500.0,0.00010958,2]
[352264657,1739021439311,-500.0,0.00010958,2]
[352264659,1739021439320,-500.0,0.00010958,2]
[352264661,1739021439330,-503.49486909,0.00010958,2]
[352264663,1739021439340,-1770.35,0.00010958,2]
[352264665,1739021439349,-500.0,0.00010958,2]
[352264667,1739021439359,-1017.43,0.00010958,2]
[352264669,1739021439368,-500.0,0.00010958,2]
[352264671,1739021439379,-500.0,0.00010958,2]
[352264673,1739021439388,-500.0,0.00010958,2]
[352264675,1739021439398,-500.0,0.00010958,2]
[352264677,1739021439407,-500.0,0.00010958,2]
[352264679,1739021439416,-3357.8,0.00010958,2]
[352264681,1739021439426,-500.0,0.00010958,2]
[352264683,1739021439435,-500.0,0.00010958,2]
[352264685,1739021439445,-500.0,0.00010958,2]
[352264687,1739021439455,-500.0,0.00010958,2]
[352264690,1739021439466,-500.0,0.00010958,2]
[352264692,1739021439479,-500.0,0.00010958,2]
[352264694,1739021439490,-500.0,0.00010958,2]
[352264696,1739021439502,-500.0,0.00010958,2]
[352264698,1739021439512,-500.0,0.00010958,2]
[352264699,1739021439522,-5769.76,0.00010958,2]
[352264702,1739021439533,-500.0,0.00010958,2]
[352264704,1739021439542,-500.0,0.00010958,2]
[352264706,1739021439552,-865.58,0.00010958,2]
[352264708,1739021439562,-625.03,0.00010958,2]
[352264710,1739021439571,-1339.78,0.00010958,2]
[352264712,1739021439581,-500.0,0.00010958,2]
[352264714,1739021439591,-500.0,0.00010958,2]
[352264716,1739021439601,-500.0,0.00010958,2]
[352264718,1739021439610,-1594.22,0.00010958,2]
[352264720,1739021439619,-500.0,0.00010958,2]
[352264722,1739021439629,-4563.35,0.00010958,2]
[352264723,1739021439638,-500.0,0.00010958,2]
[352264726,1739021439647,-49858.58,0.00010958,2]
[352264728,1739021439657,-500.0,0.00010958,2]
[352264730,1739021439667,-500.0,0.00010958,2]
[352264732,1739021439676,-664.27,0.00010958,2]
[352264734,1739021439686,-17852.05,0.00010958,2]
[352264736,1739021439695,-500.0,0.00010958,2]
[352264738,1739021439704,-2326.35,0.00010958,2]
[352264740,1739021439715,-500.0,0.00010958,2]
[352264742,1739021439724,-883.56,0.00010958,2]
[352264744,1739021439733,-500.0,0.00010958,2]
[352264746,1739021439742,-500.0,0.00010958,2]
[352264748,1739021439752,-1712.45,0.00010958,2]
[352264750,1739021439761,-500.0,0.00010958,2]
[352264752,1739021439771,-2233.57,0.00010958,2]
[352264754,1739021439780,-1938.53,0.00010958,2]
[352264756,1739021439789,-500.0,0.00010958,2]
[352264758,1739021439798,-199.30342082,0.00010958,2]
[352264760,1739021439807,-500.0,0.00010958,2]
[352264762,1739021439818,-1315.0,0.00010958,2]
[352264764,1739021439828,-562.05,0.00010958,2]
[352264766,1739021439837,-500.0,0.00010958,2]
[352264768,1739021439847,-500.0,0.00010958,2]
[352264770,1739021439856,-500.0,0.00010958,2]
[352264772,1739021439866,-1511.27,0.00010958,2]
[352264774,1739021439875,-500.0,0.00010958,2]
[352264776,1739021439885,-500.0,0.00010958,2]
[352264778,1739021439895,-500.0,0.00010958,2]
[352264780,1739021439904,-500.0,0.00010958,2]
[352264782,1739021439914,-500.0,0.00010958,2]
[352264784,1739021439928,-500.0,0.00010958,2]
[352264786,1739021439943,-500.0,0.00010958,2]
[352264788,1739021439953,-501.5379233,0.00010958,2]
[352264790,1739021439963,-2009.24,0.00010958,2]
[352264792,1739021439972,-2053.52,0.00010958,2]
[352264794,1739021439981,-500.0,0.00010958,2]
[352264796,1739021439991,-500.0,0.00010958,2]
[352264798,1739021440000,-500.0,0.00010958,2]
[352264800,1739021440009,-500.0,0.00010958,2]
[352264802,1739021440018,-500.0,0.00010958,2]
[352264804,1739021440027,-500.0,0.00010958,2]
[352264806,1739021440037,-500.0,0.00010958,2]
[352264808,1739021440046,-3576.31,0.00010958,2]
[352264810,1739021440056,-543.96,0.00010958,2]
[352264812,1739021440065,-3988.64,0.00010958,2]
[352264814,1739021440075,-500.0,0.00010958,2]
[352264816,1739021440085,-503.41528639,0.00010958,2]
[352264818,1739021440094,-500.0,0.00010958,2]
[352264820,1739021440104,-1605.02,0.00010958,2]
[352264822,1739021440113,-500.0,0.00010958,2]
[352264825,1739021440123,-892.81,0.00010958,2]
[352264827,1739021440132,-500.0,0.00010958,2]
[352264829,1739021440141,-3928.7,0.00010958,2]
[352264831,1739021440150,-500.0,0.00010958,2]
[352264833,1739021440160,-500.0,0.00010958,2]
[352264835,1739021440170,-9707.2,0.00010958,2]
[352264837,1739021440181,-500.0,0.00010958,2]
[352264839,1739021440191,-500.0,0.00010958,2]
[352264841,1739021440202,-857.2,0.00010958,2]
[352264843,1739021440214,-1572.73,0.00010958,2]
[352264845,1739021440224,-1321.91,0.00010958,2]
[352264847,1739021440233,-1753.9,0.00010958,2]
[352264849,1739021440243,-500.0,0.00010958,2]
[352264850,1739021440252,-500.0,0.00010958,2]
[352264852,1739021440262,-500.0,0.00010958,2]
[352264854,1739021440272,-500.0,0.00010958,2]
[352264856,1739021440283,-500.0,0.00010958,2]
[352264858,1739021440293,-674.63,0.00010958,2]
[352264861,1739021440302,-500.0,0.00010958,2]
[352264879,1739021440470,-500.0,0.00010958,2]
[352264881,1739021440480,-500.0,0.00010958,2]
[352264883,1739021440489,-500.0,0.00010958,2]
[352264885,1739021440499,-289.81833978,0.00010958,2]
[352264888,1739021440509,-500.0,0.00010958,2]
[352264890,1739021440519,-685.86,0.00010958,2]
[352264892,1739021440528,-500.0,0.00010958,2]
[352264894,1739021440538,-500.0,0.00010958,2]
[352264896,1739021440547,-500.0,0.00010958,2]
[352264898,1739021440556,-4420.34,0.00010958,2]
[352264900,1739021440566,-500.0,0.00010958,2]
[352264902,1739021440576,-1224.62,0.00010958,2]
[352264904,1739021440586,-500.0,0.00010958,2]
[352264906,1739021440596,-500.0,0.00010958,2]
[352264908,1739021440605,-536.54576892,0.00010958,2]
[352264910,1739021440615,-500.0,0.00010958,2]
[352264912,1739021440624,-500.0,0.00010958,2]
[352264914,1739021440633,-1144.81,0.00010958,2]
[352264916,1739021440642,-16756.56,0.00010958,2]
[352264918,1739021440652,-474.45704257,0.00010958,2]
[352264920,1739021440661,-1816.02,0.00010958,2]
[352264922,1739021440672,-3385.47,0.00010958,2]
[352264924,1739021440685,-500.0,0.00010958,2]
[352264926,1739021440695,-500.0,0.00010958,2]
[352264928,1739021440704,-500.0,0.00010958,2]
[352264930,1739021440714,-354.7727591,0.00010959,2]
[352264932,1739021440723,-354.7727591,0.00010959,2]
[352264934,1739021440732,-354.7727591,0.00010959,2]
[352264936,1739021440742,-354.7727591,0.00010959,2]
[352264938,1739021440751,-354.7727591,0.00010959,2]
[352264940,1739021440760,-708.9490979,0.00010959,2]
[352264942,1739021440769,-249.12,0.00010959,2]
[352264944,1739021440778,-207.6,0.00010959,2]
[352264946,1739021440787,-173.0,0.00010959,2]
[352264948,1739021440797,-865.04,0.00010959,2]
[352264950,1739021440807,-500.0,0.00010973,2]
[352264952,1739021440816,-420.0,0.00010999,2]
[352264954,1739021440826,-1000.0,0.00011,8]
[352264956,1739021440836,-644.7736491,0.00011,2]
[352264958,1739021440845,-177.00615149,0.00011094,2]
[352264960,1739021440855,-500.0,0.00011094,2]
[352264962,1739021440864,-494.87468252,0.00011094,2]
[352264964,1739021440874,-500.0,0.00011094,2]
[352264966,1739021440883,-500.0,0.00011094,2]
[352264968,1739021440893,-300.0,0.00011094,2]
[352264970,1739021440903,-414.34723486,0.00011095,2]
[352264972,1739021440912,-500.0,0.00011095,2]
[352264974,1739021440921,-500.0,0.00011095,2]
[352264976,1739021440931,-482.67531648,0.00011095,2]
[352264978,1739021440940,-500.0,0.00011095,2]
[352264980,1739021440950,-500.0,0.00011095,2]
[352264982,1739021440959,-500.0,0.00011095,2]
[352264984,1739021440968,-500.0,0.00011095,2]
[352264986,1739021440978,-500.0,0.00011095,2]
[352264988,1739021440987,-271.38286363,0.00011095,2]
[352264990,1739021440996,-500.0,0.00011095,2]
[352264992,1739021441005,-500.0,0.00011095,2]
[352264994,1739021441014,-500.0,0.00011095,2]
[352264996,1739021441024,-500.0,0.00011095,2]
[352264998,1739021441033,-500.0,0.00011095,2]
[352265000,1739021441042,-500.0,0.00011095,2]
[352265002,1739021441051,-500.0,0.00011095,2]
[352265004,1739021441061,-500.0,0.00011095,2]
[352265006,1739021441070,-500.0,0.00011095,2]
[352265008,1739021441080,-500.0,0.00011095,2]
[352265010,1739021441089,-500.0,0.00011095,2]
[352265012,1739021441099,-688.06,0.00011095,2]
[352265014,1739021441108,-500.0,0.00011095,2]
[352265016,1739021441117,-500.0,0.00011095,2]
[352265018,1739021441126,-500.0,0.00011095,2]
[352265020,1739021441136,-510.0,0.00011095,2]
[352265022,1739021441145,-500.0,0.00011095,2]
[352265024,1739021441154,-500.0,0.00011095,2]
[352265026,1739021441164,-500.0,0.00011095,2]
[352265028,1739021441173,-526.53405721,0.00011095,2]
[352265030,1739021441183,-500.0,0.00011095,2]
[352265032,1739021441192,-500.0,0.00011095,2]
[352265034,1739021441205,-817.65,0.00011095,2]
[352265036,1739021441215,-500.0,0.00011095,2]
[352265038,1739021441223,-500.0,0.00011095,2]
[352265040,1739021441233,-500.0,0.00011095,2]
[352265042,1739021441243,-500.0,0.00011095,2]
[352265044,1739021441252,-500.0,0.00011095,2]
[352265046,1739021441261,-500.0,0.00011095,2]
[352265048,1739021441270,-438.53863776,0.00011095,2]
[352265050,1739021441280,-900.15,0.00011095,2]
[352265052,1739021441289,-500.0,0.00011095,2]
[352265054,1739021441299,-500.0,0.00011095,2]
[352265056,1739021441308,-500.0,0.00011095,2]
[352265058,1739021441317,-500.0,0.00011095,2]
[352265060,1739021441326,-500.0,0.00011095,2]
[352265062,1739021441336,-1194.88,0.00011095,2]
[352265064,1739021441346,-500.0,0.00011095,2]
[352265066,1739021441355,-500.0,0.00011095,2]
[352265068,1739021441364,-500.0,0.00011095,2]
[352265070,1739021441373,-1460.56,0.00011095,2]
[352265072,1739021441383,-1479.66,0.00011095,2]
[352265074,1739021441392,-500.0,0.00011095,2]
[352265076,1739021441401,-614.9,0.00011095,2]
[352265078,1739021441411,-695.27,0.00011095,2]
[352265080,1739021441420,-500.0,0.00011095,2]
[352265082,1739021441429,-500.0,0.00011095,2]
[352265084,1739021441439,-754.13,0.00011095,2]
[352265086,1739021441448,-500.0,0.00011095,2]
[352265088,1739021441458,-500.0,0.00011095,2]
[352265090,1739021441468,-500.0,0.00011095,2]
[352265092,1739021441477,-500.0,0.00011095,2]
[352265094,1739021441487,-500.0,0.00011095,2]
[352265096,1739021441496,-1078.76,0.00011095,2]
[352265098,1739021441506,-500.0,0.00011095,2]
[352265100,1739021441515,-500.0,0.00011095,2]
[352265102,1739021441524,-500.0,0.00011095,2]
[352265104,1739021441533,-500.0,0.00011095,2]
[352265106,1739021441543,-500.0,0.00011095,2]
[352265108,1739021441552,-500.0,0.00011095,2]
[352265110,1739021441562,-527.87,0.00011095,2]
[352265112,1739021441571,-1502.22,0.00011095,2]
[352265114,1739021441580,-500.0,0.00011095,2]
[352265116,1739021441589,-500.0,0.00011095,2]
[352265118,1739021441599,-716.35,0.00011095,2]
[352265120,1739021441608,-500.0,0.00011095,2]
[352265122,1739021441617,-500.0,0.00011095,2]
[352265123,1739021441626,-638.39880981,0.00011095,2]
[352265125,1739021441635,-371.96574739,0.00011095,2]
[352265127,1739021441645,-500.0,0.00011095,2]